[Event "4NCL 2021-22"]
[Site "England"]
[Date "2022.02.12"]
[Round "3.15"]
[White "Kolbus, Dietmar"]
[Black "Boswell, Jacob Connor"]
[Result "1-0"]
[ECO "A28"]
[WhiteElo "2305"]
[BlackElo "2053"]
[Annotator "ChessBase"]
[PlyCount "61"]
[EventDate "2021.11.27"]
[EventType "team-tourn"]
[EventCountry "ENG"]
[SourceTitle "playchess.com"]
[Source "ChessBase"]
[SourceQuality "1"]
[TimeControl "40/6000+30:3000+30"]

1. c4 {[%emt 0:00:03]} e5 {[%emt 0:02:28]} 2. Nc3 {[%emt 0:01:13]} Nf6 {[%emt 0:00:52]} 3. Nf3 {[%emt 0:00:22]} Nc6 {[%emt 0:00:26]} 4. e3 {[%emt 0:00:41]} d5 {[%emt 0:06:21]} 5. cxd5 {[%emt 0:00:14]} Nxd5 {[%emt 0:00:18]} 6. Bb5 {[%emt 0:00:09]} Nxc3 {[%emt 0:15:41]} 7. bxc3 {[%emt 0:00:09]} Bd6 {[%emt 0:01:02]} 8. d4 {[%emt 0:00:13]} Bd7 {[%emt 0:05:39]} 9. e4 {[%emt 0:18:35]} O-O {[%emt 0:12:53]} 10. Bxc6 {[%emt 0:08:33]} Bxc6 {[%emt 0:01:53]} 11. dxe5 {[%emt 0:00:46]} Be7 {[%emt 0:06:48]} 12. Qe2 {[%emt 0:00:23]} f5 {[%emt 0:09:17]} 13. exf5 {[%emt 0:20:03]} Qd5 {[%emt 0:05:54]} 14. Nd4 {[%emt 0:26:02]} Qxg2 {[%emt 0:04:23]} 15. Rf1 {[%emt 0:00:06]} Qh3 {[%emt 0:17:19]} 16. Qc4+ {[%emt 0:04:42]} Kh8 {[%emt 0:03:06]} 17. Nxc6 {[%emt 0:01:32]} bxc6 {[%emt 0:00:06]} 18. f6 {[%emt 0:06:58]} gxf6 {[%emt 0:00:43]} 19. exf6 {[%emt 0:00:22]} Bxf6 {[%emt 0:01:38]} 20. Be3 {[%emt 0:00:07]} Rad8 {[%emt 0:01:47]} 21. Rg1 {[%emt 0:08:11]} Qxh2 {[%emt 0:02:48]} 22. Ke2 {[%emt 0:01:33]} Qh5+ {[%emt 0:01:06]} 23. Rg4 {[%emt 0:01:04]} Rd4 {[%emt 0:07:18]} 24. Qxd4 {[%emt 0:00:20]} h6 {[%emt 0:02:11]} 25. Qc4 {[%emt 0:00:39]} Qf5 {[%emt 0:00:31]} 26. Rh1 {[%emt 0:03:44]} Qc2+ {[%emt 0:00:20]} 27. Kf1 {[%emt 0:00:22]} Bg5 {[%emt 0:00:34]} 28. Qd4+ {[%emt 0:00:56]} Kg8 {[%emt 0:00:28]} 29. Rxg5+ {[%emt 0:00:39]} hxg5 {[%emt 0:00:11]} 30. Rh8+ {[%emt 0:00:16]} Kf7 {[%emt 0:00:10]} 31. Qd7+ {[%emt 0:00:22]} 1-0

[Event "4NCL 2021-22"]
[Site "England"]
[Date "2022.02.12"]
[Round "3.23"]
[White "Hobson, Kenneth"]
[Black "Povah, Nigel E"]
[Result "0-1"]
[ECO "B21"]
[WhiteElo "2090"]
[BlackElo "2245"]
[Annotator "ChessBase"]
[PlyCount "66"]
[EventDate "2021.11.27"]
[EventType "team-tourn"]
[EventCountry "ENG"]
[SourceTitle "playchess.com"]
[Source "ChessBase"]
[SourceQuality "1"]
[TimeControl "40/6000+30:3000+30"]

1. e4 {[%emt 0:00:03]} c5 {[%emt 0:00:11]} 2. d4 {[%emt 0:00:12]} cxd4 {[%emt 0:00:09]} 3. c3 {[%emt 0:00:04]} dxc3 {[%emt 0:00:11]} 4. Nxc3 {[%emt 0:00:07]} Nc6 {[%emt 0:00:08]} 5. Nf3 {[%emt 0:00:25]} e6 {[%emt 0:00:12]} 6. Bc4 {[%emt 0:00:15]} a6 {[%emt 0:00:17]} 7. O-O {[%emt 0:00:18]} Nge7 {[%emt 0:00:31]} 8. Bg5 {[%emt 0:00:33]} h6 {[%emt 0:00:28]} 9. Bh4 {[%emt 0:00:33]} g5 {[%emt 0:01:42]} 10. Bg3 {[%emt 0:02:30]} Ng6 {[%emt 0:00:31]} 11. Re1 {[%emt 0:13:01]} d6 {[%emt 0:09:05]} 12. e5 {[%emt 0:19:38]} g4 {[%emt 0:17:50]} 13. exd6 {[%emt 0:02:29]} gxf3 {[%emt 0:00:29]} 14. Qd3 {[%emt 0:18:15]} Bg7 {[%emt 0:26:30]} 15. Rad1 {[%emt 0:06:30]} Nge5 {[%emt 0:09:16]} 16. Bxe5 {[%emt 0:01:15]} Nxe5 {[%emt 0:01:53]} 17. Qd4 {[%emt 0:00:51]} Qg5 {[%emt 0:01:25]} 18. g3 {[%emt 0:02:23]} Bd7 {[%emt 0:02:18]} 19. h4 {[%emt 0:02:40]} Qf5 {[%emt 0:05:59]} 20. Bd3 {[%emt 0:01:16]} Nxd3 {[%emt 0:05:28]} 21. Qxg7 {[%emt 0:00:11]} O-O-O {[%emt 0:00:22]} 22. Re3 {[%emt 0:01:12]} Rhg8 {[%emt 0:13:50]} 23. Qd4 {[%emt 0:01:03]} Nf4 {[%emt 0:00:32]} 24. Qa7 {[%emt 0:03:30]} Bc6 {[%emt 0:02:00]} 25. Ne4 {[%emt 0:03:32]} Bxe4 {[%emt 0:03:58]} 26. d7+ {[%emt 0:02:43]} Kc7 {[%emt 0:00:49]} 27. Rc3+ {[%emt 0:04:24]} Bc6 {[%emt 0:00:08]} 28. Rc5 {[%emt 0:04:37]} Rxg3+ {[%emt 0:03:46]} 29. fxg3 {[%emt 0:00:09]} f2+ {[%emt 0:00:13]} 30. Kf1 {[%emt 0:01:47]} Qh3+ {[%emt 0:00:15]} 31. Kxf2 {[%emt 0:00:11]} Qg2+ {[%emt 0:00:05]} 32. Ke3 {[%emt 0:00:09]} Qf3+ {[%emt 0:00:05]} 33. Kd2 {[%emt 0:00:37]} Rxd7+ {[%emt 0:00:06]} 0-1

[Event "4NCL 2021-22"]
[Site "England"]
[Date "2022.02.12"]
[Round "3.24"]
[White "Kalaiyalahan, Akshaya"]
[Black "Zakarian, Dimitrios Levon"]
[Result "1-0"]
[ECO "E01"]
[WhiteElo "2208"]
[BlackElo "1962"]
[Annotator "ChessBase"]
[PlyCount "89"]
[EventDate "2021.11.27"]
[EventType "team-tourn"]
[EventCountry "ENG"]
[SourceTitle "playchess.com"]
[Source "ChessBase"]
[SourceQuality "1"]
[TimeControl "40/6000+30:3000+30"]

1. Nf3 {[%emt 0:00:04]} Nf6 {[%emt 0:02:09]} 2. g3 {[%emt 0:00:04]} d5 {[%emt 0:00:10]} 3. Bg2 {[%emt 0:00:09]} c6 {[%emt 0:00:05]} 4. O-O {[%emt 0:00:22]} e6 {[%emt 0:00:12]} 5. d4 {[%emt 0:01:01]} Nbd7 {[%emt 0:00:14]} 6. Nbd2 {[%emt 0:00:46]} Bd6 {[%emt 0:00:32]} 7. c4 {[%emt 0:00:28]} O-O {[%emt 0:00:27]} 8. Qc2 {[%emt 0:00:18]} Qe7 {[%emt 0:00:57]} 9. b3 {[%emt 0:01:47]} b6 {[%emt 0:01:27]} 10. Bb2 {[%emt 0:00:12]} Bb7 {[%emt 0:02:25]} 11. e4 {[%emt 0:03:14]} dxe4 {[%emt 0:10:05]} 12. Nxe4 {[%emt 0:00:11]} Nxe4 {[%emt 0:00:05]} 13. Qxe4 {[%emt 0:00:05]} Nf6 {[%emt 0:00:10]} 14. Qc2 {[%emt 0:03:22]} Ba3 {[%emt 0:03:24]} 15. Rfe1 {[%emt 0:03:26]} Bxb2 {[%emt 0:01:59]} 16. Qxb2 {[%emt 0:00:05]} Rfd8 {[%emt 0:01:44]} 17. Rad1 {[%emt 0:01:57]} Rac8 {[%emt 0:00:59]} 18. Rc1 {[%emt 0:10:58]} Qc7 {[%emt 0:06:37]} 19. c5 {[%emt 0:06:27]} Nd5 {[%emt 0:07:15]} 20. Bf1 {[%emt 0:04:03]} b5 {[%emt 0:06:45]} 21. a3 {[%emt 0:05:03]} a5 {[%emt 0:02:45]} 22. Nd2 {[%emt 0:07:16]} Nf6 {[%emt 0:04:42]} 23. Ne4 {[%emt 0:03:04]} Nxe4 {[%emt 0:00:49]} 24. Rxe4 {[%emt 0:00:05]} Qe7 {[%emt 0:02:27]} 25. Rce1 {[%emt 0:02:56]} Rd7 {[%emt 0:04:29]} 26. Qc3 {[%emt 0:01:56]} Rcd8 {[%emt 0:03:57]} 27. h4 {[%emt 0:06:10]} Rd5 {[%emt 0:04:00]} 28. Bh3 {[%emt 0:02:42]} Qc7 {[%emt 0:06:41]} 29. Rf4 {[%emt 0:14:48]} Re8 {[%emt 0:12:55]} 30. Bg2 {[%emt 0:02:00]} Rdd8 {[%emt 0:00:24]} 31. Rg4 {[%emt 0:01:29]} Qc8 {[%emt 0:10:45]} 32. Bh3 {[%emt 0:07:30]} Rd5 {[%emt 0:01:02]} 33. Qxa5 {[%emt 0:02:09]} Red8 {[%emt 0:05:34]} 34. Qc3 {[%emt 0:01:39]} Qd7 {[%emt 0:00:28]} 35. Rd1 {[%emt 0:03:09]} Qe7 {[%emt 0:00:26]} 36. Bg2 {[%emt 0:03:10]} Rxc5 {[%emt 0:01:55]} 37. Rxg7+ {[%emt 0:00:17]} Kxg7 {[%emt 0:00:57]} 38. dxc5+ {[%emt 0:00:04]} Kg8 {[%emt 0:00:14]} 39. Re1 {[%emt 0:00:32]} Ra8 {[%emt 0:02:59]} 40. b4 {[%emt 0:02:38]} f5 {[%emt 0:00:33]} 41. Qb3 {[%emt 0:50:59]} Re8 {[%emt 0:51:25]} 42. Rd1 {[%emt 0:02:51]} Kf7 {[%emt 0:01:06]} 43. Rd6 {[%emt 0:01:42]} Rd8 {[%emt 0:00:13]} 44. Bxc6 {[%emt 0:05:00]} Bxc6 {[%emt 0:00:00]} 45. Rxc6 {[%emt 0:00:00]} 1-0

[Event "4NCL 2021-22"]
[Site "England"]
[Date "2022.02.12"]
[Round "3.26"]
[White "Franklin, Samuel G A"]
[Black "Willow, Jonah B"]
[Result "1/2-1/2"]
[ECO "A18"]
[WhiteElo "2335"]
[BlackElo "2365"]
[Annotator "ChessBase"]
[PlyCount "78"]
[EventDate "2021.11.27"]
[EventType "team-tourn"]
[EventCountry "ENG"]
[SourceTitle "playchess.com"]
[Source "ChessBase"]
[SourceQuality "1"]
[TimeControl "40/6000+30:3000+30"]

1. c4 {[%emt 0:00:25]} Nf6 {[%emt 0:00:47]} 2. Nc3 {[%emt 0:01:24]} e6 {[%emt 0:00:33]} 3. e4 {[%emt 0:01:36]} d5 {[%emt 0:00:34]} 4. e5 {[%emt 0:01:08]} d4 {[%emt 0:00:13]} 5. exf6 {[%emt 0:00:25]} dxc3 {[%emt 0:00:04]} 6. bxc3 {[%emt 0:00:17]} Qxf6 {[%emt 0:00:04]} 7. d4 {[%emt 0:00:35]} b6 {[%emt 0:00:07]} 8. Be2 {[%emt 0:02:06]} Bb7 {[%emt 0:01:14]} 9. Bf3 {[%emt 0:00:33]} Bxf3 {[%emt 0:00:09]} 10. Nxf3 {[%emt 0:00:13]} Bd6 {[%emt 0:00:45]} 11. Qa4+ {[%emt 0:05:56]} c6 {[%emt 0:00:20]} 12. O-O {[%emt 0:00:42]} O-O {[%emt 0:01:01]} 13. Rb1 {[%emt 0:06:52]} Bc7 {[%emt 0:00:19]} 14. Re1 {[%emt 0:16:27]} Rc8 {[%emt 0:06:23]} 15. Qc2 {[%emt 0:15:11]} Nd7 {[%emt 0:04:01]} 16. a4 {[%emt 0:02:48]} Bd6 {[%emt 0:19:31]} 17. Bg5 {[%emt 0:08:03]} Qg6 {[%emt 0:01:23]} 18. Qxg6 {[%emt 0:00:16]} hxg6 {[%emt 0:00:06]} 19. g3 {[%emt 0:02:21]} Rab8 {[%emt 0:24:17]} 20. Kg2 {[%emt 0:05:17]} Re8 {[%emt 0:29:20]} 21. h4 {[%emt 0:12:13]} f6 {[%emt 0:03:40]} 22. Be3 {[%emt 0:02:14]} Kf7 {[%emt 0:01:39]} 23. Nd2 {[%emt 0:01:19]} Bc7 {[%emt 0:02:48]} 24. Nb3 {[%emt 0:06:13]} Rh8 {[%emt 0:02:20]} 25. f3 {[%emt 0:05:11]} Rh5 {[%emt 0:00:39]} 26. Bf2 {[%emt 0:00:38]} g5 {[%emt 0:03:12]} 27. g4 {[%emt 0:02:22]} Rhh8 {[%emt 0:00:30]} 28. Rh1 {[%emt 0:01:46]} gxh4 {[%emt 0:00:55]} 29. Rxh4 {[%emt 0:02:00]} g5 {[%emt 0:01:05]} 30. Rhh1 {[%emt 0:00:36]} Rbg8 {[%emt 0:01:28]} 31. Rbd1 {[%emt 0:01:19]} Nf8 {[%emt 0:01:15]} 32. Nc1 {[%emt 0:00:55]} Ng6 {[%emt 0:00:17]} 33. Nd3 {[%emt 0:00:18]} Rd8 {[%emt 0:00:15]} 34. Rxh8 {[%emt 0:01:57]} Rxh8 {[%emt 0:00:05]} 35. Bg3 {[%emt 0:00:09]} Bxg3 {[%emt 0:02:23]} 36. Kxg3 {[%emt 0:00:05]} Rd8 {[%emt 0:00:13]} 37. f4 {[%emt 0:01:55]} gxf4+ {[%emt 0:02:45]} 38. Nxf4 {[%emt 0:00:05]} Nxf4 {[%emt 0:00:30]} 39. Kxf4 {[%emt 0:00:02]} Rh8 {[%emt 0:00:14]} 1/2-1/2

[Event "4NCL 2021-22"]
[Site "England"]
[Date "2022.02.12"]
[Round "3.29"]
[White "Fitzsimons, David"]
[Black "Cox, John J"]
[Result "0-1"]
[ECO "C54"]
[WhiteElo "2369"]
[BlackElo "2319"]
[Annotator "ChessBase"]
[PlyCount "67"]
[EventDate "2021.11.27"]
[EventType "team-tourn"]
[EventCountry "ENG"]
[SourceTitle "playchess.com"]
[Source "ChessBase"]
[SourceQuality "1"]
[TimeControl "40/6000+30:3000+30"]

1. e4 {[%emt 0:00:03]} e5 {[%emt 0:06:32]} 2. Nf3 {[%emt 0:00:14]} Nc6 {[%emt 0:00:05]} 3. Bc4 {[%emt 0:00:13]} Bc5 {[%emt 0:00:05]} 4. c3 {[%emt 0:00:31]} Nf6 {[%emt 0:00:06]} 5. d3 {[%emt 0:00:12]} O-O {[%emt 0:00:10]} 6. O-O {[%emt 0:00:06]} a5 {[%emt 0:00:04]} 7. Re1 {[%emt 0:01:13]} h6 {[%emt 0:03:08]} 8. h3 {[%emt 0:01:41]} Ba7 {[%emt 0:00:23]} 9. Bb3 {[%emt 0:04:25]} d6 {[%emt 0:05:08]} 10. d4 {[%emt 0:02:24]} Re8 {[%emt 0:08:16]} 11. Bc2 {[%emt 0:00:26]} exd4 {[%emt 0:12:07]} 12. cxd4 {[%emt 0:00:32]} Nb4 {[%emt 0:02:23]} 13. Nc3 {[%emt 0:00:53]} Nxc2 {[%emt 0:00:20]} 14. Qxc2 {[%emt 0:00:05]} d5 {[%emt 0:03:04]} 15. e5 {[%emt 0:03:54]} Nh7 {[%emt 0:00:11]} 16. Be3 {[%emt 0:03:58]} Be6 {[%emt 0:01:36]} 17. Rac1 {[%emt 0:05:54]} c6 {[%emt 0:00:53]} 18. Ne2 {[%emt 0:03:34]} Qd7 {[%emt 0:07:21]} 19. Ng3 {[%emt 0:05:16]} Rac8 {[%emt 0:06:36]} 20. Qd2 {[%emt 0:06:25]} Bb6 {[%emt 0:02:59]} 21. Rc3 {[%emt 0:10:00]} a4 {[%emt 0:08:48]} 22. Bxh6 {[%emt 0:19:21]} gxh6 {[%emt 0:08:53]} 23. Qxh6 {[%emt 0:02:47]} Qe7 {[%emt 0:01:23]} 24. Nh5 {[%emt 0:03:23]} Qf8 {[%emt 0:00:22]} 25. Qf4 {[%emt 0:00:19]} Bd8 {[%emt 0:22:53]} 26. Nf6+ {[%emt 0:03:00]} Kh8 {[%emt 0:00:16]} 27. Ree3 {[%emt 0:14:49]} Bxf6 {[%emt 0:01:56]} 28. exf6 {[%emt 0:00:04]} Qg8 {[%emt 0:00:28]} 29. g4 {[%emt 0:06:49]} Qg6 {[%emt 0:01:19]} 30. g5 {[%emt 0:00:18]} Rg8 {[%emt 0:00:44]} 31. h4 {[%emt 0:07:39]} Qxf6 {[%emt 0:00:54]} 32. Qg3 {[%emt 0:00:16]} Qf5 {[%emt 0:00:45]} 33. Ne5 {[%emt 0:01:23]} Nxg5 {[%emt 0:01:20]} 34. Nf3 {[%emt 0:01:31]} 0-1

[Event "4NCL 2021-22"]
[Site "England"]
[Date "2022.02.12"]
[Round "3.30"]
[White "Sowray, Peter J"]
[Black "Yao, Lan"]
[Result "1-0"]
[ECO "E49"]
[WhiteElo "2226"]
[BlackElo "2297"]
[Annotator "ChessBase"]
[PlyCount "91"]
[EventDate "2021.11.27"]
[EventType "team-tourn"]
[EventCountry "ENG"]
[SourceTitle "playchess.com"]
[Source "ChessBase"]
[SourceQuality "1"]
[TimeControl "40/6000+30:3000+30"]

1. d4 {[%emt 0:00:04]} Nf6 {[%emt 0:00:06]} 2. c4 {[%emt 0:00:13]} e6 {[%emt 0:00:08]} 3. Nc3 {[%emt 0:00:08]} Bb4 {[%emt 0:00:11]} 4. a3 {[%emt 0:00:09]} Bxc3+ {[%emt 0:00:07]} 5. bxc3 {[%emt 0:00:09]} d5 {[%emt 0:00:06]} 6. e3 {[%emt 0:03:18]} O-O {[%emt 0:00:13]} 7. cxd5 {[%emt 0:00:25]} exd5 {[%emt 0:00:11]} 8. Bd3 {[%emt 0:00:43]} c5 {[%emt 0:00:27]} 9. Ne2 {[%emt 0:01:54]} b6 {[%emt 0:00:23]} 10. O-O {[%emt 0:02:40]} Ba6 {[%emt 0:00:58]} 11. Bxa6 {[%emt 0:01:53]} Nxa6 {[%emt 0:00:02]} 12. Qd3 {[%emt 0:02:49]} Nb8 {[%emt 0:00:08]} 13. f3 {[%emt 0:01:04]} Re8 {[%emt 0:09:09]} 14. Ng3 {[%emt 0:03:45]} Nc6 {[%emt 0:00:14]} 15. Bb2 {[%emt 0:03:24]} c4 {[%emt 0:02:43]} 16. Qe2 {[%emt 0:03:09]} b5 {[%emt 0:09:27]} 17. e4 {[%emt 0:06:00]} Qb6 {[%emt 0:02:29]} 18. Qf2 {[%emt 0:08:54]} Ne7 {[%emt 0:02:47]} 19. Rae1 {[%emt 0:09:53]} a5 {[%emt 0:10:00]} 20. e5 {[%emt 0:06:13]} Nd7 {[%emt 0:00:09]} 21. f4 {[%emt 0:00:08]} f5 {[%emt 0:01:18]} 22. exf6 {[%emt 0:02:55]} Qxf6 {[%emt 0:09:23]} 23. f5 {[%emt 0:01:48]} Ra6 {[%emt 0:17:53]} 24. Bc1 {[%emt 0:09:09]} b4 {[%emt 0:07:22]} 25. cxb4 {[%emt 0:17:47]} axb4 {[%emt 0:00:16]} 26. axb4 {[%emt 0:00:02]} Rb8 {[%emt 0:07:57]} 27. Bf4 {[%emt 0:06:30]} Rxb4 {[%emt 0:05:42]} 28. Qe3 {[%emt 0:02:22]} Nc6 {[%emt 0:06:30]} 29. Qe8+ {[%emt 0:00:58]} Nf8 {[%emt 0:00:08]} 30. Re6 {[%emt 0:00:52]} Qf7 {[%emt 0:04:17]} 31. Bd6 {[%emt 0:02:29]} Rba4 {[%emt 0:03:49]} 32. f6 {[%emt 0:04:18]} Ra8 {[%emt 0:07:33]} 33. Qxf7+ {[%emt 0:01:47]} Kxf7 {[%emt 0:00:02]} 34. fxg7+ {[%emt 0:00:12]} Kxg7 {[%emt 0:00:54]} 35. Bxf8+ {[%emt 0:01:31]} Rxf8 {[%emt 0:00:06]} 36. Rxf8 {[%emt 0:00:59]} Kxf8 {[%emt 0:02:44]} 37. Rxc6 {[%emt 0:00:10]} Ra2 {[%emt 0:00:22]} 38. Kf1 {[%emt 0:01:43]} Rd2 {[%emt 0:00:50]} 39. Ne2 {[%emt 0:00:21]} Ke7 {[%emt 0:00:38]} 40. Rh6 {[%emt 0:01:34]} Rd3 {[%emt 0:01:39]} 41. Rxh7+ {[%emt 0:51:02]} Kd6 {[%emt 0:50:14]} 42. Rh6+ {[%emt 0:01:18]} Kd7 {[%emt 0:00:04]} 43. Ke1 {[%emt 0:01:42]} Re3 {[%emt 0:00:25]} 44. Kd2 {[%emt 0:02:02]} Rd3+ {[%emt 0:00:08]} 45. Kc2 {[%emt 0:00:09]} Ke7 {[%emt 0:00:21]} 46. Rh3 {[%emt 0:01:32]} 1-0

[Event "4NCL 2021-22"]
[Site "England"]
[Date "2022.02.12"]
[Round "3.31"]
[White "Royal, Shreyas"]
[Black "French, Max"]
[Result "1/2-1/2"]
[ECO "E01"]
[WhiteElo "2272"]
[BlackElo "2246"]
[Annotator "ChessBase"]
[PlyCount "82"]
[EventDate "2021.11.27"]
[EventType "team-tourn"]
[EventCountry "ENG"]
[SourceTitle "playchess.com"]
[Source "ChessBase"]
[SourceQuality "1"]
[TimeControl "40/6000+30:3000+30"]

1. d4 {[%emt 0:00:26]} d5 {[%emt 0:00:49]} 2. c4 {[%emt 0:00:06]} e6 {[%emt 0:00:09]} 3. Nf3 {[%emt 0:00:06]} Nf6 {[%emt 0:00:43]} 4. g3 {[%emt 0:00:09]} Bb4+ {[%emt 0:00:52]} 5. Bd2 {[%emt 0:00:32]} Bd6 {[%emt 0:00:17]} 6. Nc3 {[%emt 0:04:10]} c6 {[%emt 0:02:43]} 7. Qc2 {[%emt 0:02:14]} Nbd7 {[%emt 0:02:37]} 8. e4 {[%emt 0:02:45]} dxe4 {[%emt 0:07:56]} 9. Nxe4 {[%emt 0:00:15]} Nxe4 {[%emt 0:01:26]} 10. Qxe4 {[%emt 0:00:08]} Nf6 {[%emt 0:04:59]} 11. Qc2 {[%emt 0:03:52]} Qc7 {[%emt 0:11:04]} 12. O-O-O {[%emt 0:16:58]} Bd7 {[%emt 0:08:07]} 13. Bg2 {[%emt 0:23:00]} O-O {[%emt 0:05:50]} 14. Rhe1 {[%emt 0:03:02]} Rad8 {[%emt 0:12:55]} 15. Ne5 {[%emt 0:10:18]} c5 {[%emt 0:13:56]} 16. Nxd7 {[%emt 0:01:13]} Rxd7 {[%emt 0:03:05]} 17. d5 {[%emt 0:00:23]} exd5 {[%emt 0:02:25]} 18. cxd5 {[%emt 0:02:43]} Be5 {[%emt 0:13:25]} 19. f4 {[%emt 0:08:50]} Bd4 {[%emt 0:00:00]} 20. Be3 {[%emt 0:00:27]} Bxe3+ {[%emt 0:00:00]} 21. Rxe3 {[%emt 0:00:07]} b5 {[%emt 0:00:13]} 22. Qf5 {[%emt 0:07:08]} c4 {[%emt 0:02:33]} 23. g4 {[%emt 0:01:16]} Qc5 {[%emt 0:04:51]} 24. Re2 {[%emt 0:07:48]} Rd6 {[%emt 0:01:18]} 25. g5 {[%emt 0:00:06]} g6 {[%emt 0:01:50]} 26. Qe5 {[%emt 0:00:53]} Re8 {[%emt 0:03:15]} 27. Qd4 {[%emt 0:01:29]} Qxd4 {[%emt 0:00:04]} 28. Rxe8+ {[%emt 0:00:04]} Nxe8 {[%emt 0:00:05]} 29. Rxd4 {[%emt 0:00:03]} Nc7 {[%emt 0:00:50]} 30. a4 {[%emt 0:01:00]} a6 {[%emt 0:01:46]} 31. Kc2 {[%emt 0:02:31]} bxa4 {[%emt 0:01:07]} 32. Rxc4 {[%emt 0:00:11]} Nxd5 {[%emt 0:01:23]} 33. Bxd5 {[%emt 0:00:07]} Rxd5 {[%emt 0:00:03]} 34. Rxa4 {[%emt 0:00:17]} a5 {[%emt 0:00:40]} 35. Kc3 {[%emt 0:00:38]} h6 {[%emt 0:02:04]} 36. Rd4 {[%emt 0:02:57]} Rc5+ {[%emt 0:00:45]} 37. Rc4 {[%emt 0:00:12]} Rf5 {[%emt 0:00:25]} 38. h4 {[%emt 0:01:32]} hxg5 {[%emt 0:00:05]} 39. hxg5 {[%emt 0:00:14]} Kf8 {[%emt 0:00:45]} 40. b4 {[%emt 0:00:52]} axb4+ {[%emt 0:00:06]} 41. Rxb4 {[%emt 0:50:08]} Ke7 {[%emt 0:50:25]} 1/2-1/2

[Event "4NCL 2021-22"]
[Site "England"]
[Date "2022.02.12"]
[Round "3.32"]
[White "Ratnesan, Radha"]
[Black "Horton, Jamie A"]
[Result "1/2-1/2"]
[ECO "D59"]
[WhiteElo "1623"]
[BlackElo "2275"]
[Annotator "ChessBase"]
[PlyCount "81"]
[EventDate "2021.11.27"]
[EventType "team-tourn"]
[EventCountry "ENG"]
[SourceTitle "playchess.com"]
[Source "ChessBase"]
[SourceQuality "1"]
[TimeControl "40/6000+30:3000+30"]

1. d4 {[%emt 0:00:03]} Nf6 {[%emt 0:00:43]} 2. c4 {[%emt 0:00:08]} e6 {[%emt 0:00:37]} 3. Nf3 {[%emt 0:00:30]} d5 {[%emt 0:00:26]} 4. Bg5 {[%emt 0:04:47]} Be7 {[%emt 0:01:03]} 5. e3 {[%emt 0:00:58]} O-O {[%emt 0:00:35]} 6. Nc3 {[%emt 0:01:41]} h6 {[%emt 0:00:24]} 7. Bh4 {[%emt 0:01:36]} b6 {[%emt 0:01:19]} 8. cxd5 {[%emt 0:04:53]} Nxd5 {[%emt 0:03:20]} 9. Bxe7 {[%emt 0:02:21]} Qxe7 {[%emt 0:00:57]} 10. Nxd5 {[%emt 0:09:26]} exd5 {[%emt 0:00:03]} 11. Bd3 {[%emt 0:03:23]} Be6 {[%emt 0:08:18]} 12. O-O {[%emt 0:02:07]} c5 {[%emt 0:10:16]} 13. a4 {[%emt 0:20:18]} Nd7 {[%emt 0:20:19]} 14. Qd2 {[%emt 0:15:21]} Rfc8 {[%emt 0:14:25]} 15. Rfc1 {[%emt 0:07:24]} c4 {[%emt 0:27:58]} 16. Bc2 {[%emt 0:06:49]} a6 {[%emt 0:09:54]} 17. e4 {[%emt 0:07:23]} dxe4 {[%emt 0:02:11]} 18. Bxe4 {[%emt 0:00:31]} Rab8 {[%emt 0:00:15]} 19. d5 {[%emt 0:05:39]} Bg4 {[%emt 0:01:44]} 20. Re1 {[%emt 0:03:51]} Qd6 {[%emt 0:00:19]} 21. h3 {[%emt 0:01:45]} Bxf3 {[%emt 0:00:56]} 22. Bxf3 {[%emt 0:00:15]} Rd8 {[%emt 0:02:04]} 23. Qd4 {[%emt 0:02:48]} Rbc8 {[%emt 0:01:56]} 24. Rec1 {[%emt 0:01:32]} Qc5 {[%emt 0:01:21]} 25. Qxc5 {[%emt 0:02:09]} Rxc5 {[%emt 0:00:09]} 26. Rd1 {[%emt 0:01:05]} Nf6 {[%emt 0:00:59]} 27. d6 {[%emt 0:00:21]} Ne8 {[%emt 0:00:55]} 28. d7 {[%emt 0:00:58]} Nf6 {[%emt 0:00:17]} 29. Bb7 {[%emt 0:00:41]} Rxd7 {[%emt 0:00:28]} 30. Rxd7 {[%emt 0:01:47]} Nxd7 {[%emt 0:00:00]} 31. Bxa6 {[%emt 0:00:08]} Ne5 {[%emt 0:01:16]} 32. Rd1 {[%emt 0:02:03]} c3 {[%emt 0:00:31]} 33. bxc3 {[%emt 0:00:10]} Rxc3 {[%emt 0:00:01]} 34. Bb5 {[%emt 0:01:37]} Rc7 {[%emt 0:00:57]} 35. Rd6 {[%emt 0:00:00]} Rb7 {[%emt 0:00:31]} 36. f4 {[%emt 0:00:23]} Ng6 {[%emt 0:00:08]} 37. Bd3 {[%emt 0:00:25]} Nf8 {[%emt 0:00:50]} 38. Rd8 {[%emt 0:00:53]} g6 {[%emt 0:00:28]} 39. Bb5 {[%emt 0:01:03]} Kg7 {[%emt 0:00:18]} 40. Bc6 {[%emt 0:00:43]} Rc7 {[%emt 0:00:39]} 41. Bb5 {[%emt 0:05:52]} 1/2-1/2